{"text_format":"1","workbook":"xlsx","n_sheets":3,"sheets":["個人オープン例会企画書シート（原本）","Sheet3","Sheet4"],"not_rendered":{"charts":0,"images":0,"macros":1,"external_links":0,"defined_names":1,"comments":0,"pivot_tables":0},"unopened":[],"bounds":{"document_bytes":16777216,"sheet_cells":100000,"rows_first":2000,"rows_last":500,"rows_between":2000,"halvings":0,"cell_chars":16384,"cell_head_chars":4096},"cells_cut":0,"cells_raw":0,"read":"whole","date_system":"1900"}

{"sheet":"個人オープン例会企画書シート（原本）","index":0,"n_rows":198,"n_cols":247,"rows_kept":198,"cut":false,"hidden":false,"merged":[[79,167,79,175],[79,176,79,192],[79,193,79,198],[79,199,79,217],[79,218,79,247],[80,167,80,175],[80,176,80,217],[80,218,80,247],[42,228,42,248],[43,228,43,247],[44,228,44,247],[70,228,70,248],[72,228,72,247],[73,228,73,247],[71,228,71,247],[78,167,78,169],[78,170,78,177],[78,178,78,181],[78,182,78,184],[78,185,78,192],[78,193,78,198],[78,199,78,206],[78,207,78,217],[78,218,78,247],[77,166,77,192],[77,193,77,202],[77,203,77,212],[77,213,77,215],[77,216,77,229],[77,230,77,240],[77,241,77,242],[77,243,77,245],[77,246,77,247],[67,235,67,242],[67,243,67,244],[67,245,67,248],[70,167,70,225],[71,167,71,225],[72,167,72,225],[67,166,67,168],[67,169,67,179],[67,180,67,181],[67,182,67,184],[67,185,67,186],[67,187,67,197],[67,198,67,204],[67,206,67,213],[67,215,67,234],[57,167,57,247],[60,167,60,233],[60,235,61,248],[61,167,61,233],[64,166,64,168],[64,169,64,179],[64,180,64,181],[64,182,64,184],[64,185,64,186],[64,187,64,202],[64,203,64,241],[64,242,64,248],[50,199,50,206],[50,207,50,217],[50,218,50,247],[51,167,51,175],[51,176,51,192],[51,199,51,217],[52,176,52,217],[52,218,52,247],[49,107,49,118],[51,112,51,117],[51,193,51,198],[51,218,51,247],[52,167,52,175],[50,167,50,169],[50,170,50,177],[50,178,50,181],[50,182,50,184],[50,185,50,192],[50,193,50,198],[32,167,32,233],[32,235,33,248],[33,167,33,233],[36,166,36,168],[36,169,36,179],[36,180,36,181],[36,182,36,184],[36,185,36,186],[36,187,36,202],[36,203,36,241],[36,242,36,248],[39,235,39,242],[39,243,39,244],[39,245,39,248],[49,166,49,192],[49,193,49,202],[49,203,49,212],[49,213,49,215],[49,216,49,229],[49,230,49,240],[43,167,43,225],[44,167,44,225],[42,167,42,225],[49,241,49,242],[49,243,49,245],[49,246,49,247],[39,166,39,168],[39,169,39,179],[39,180,39,181],[39,182,39,184],[39,185,39,186],[39,187,39,197],[39,198,39,204],[39,206,39,213],[39,215,39,234],[29,167,29,247],[78,124,78,134],[78,135,78,164],[79,84,79,92],[79,93,79,109],[79,110,79,115],[79,116,79,134],[79,135,79,164],[80,84,80,92],[80,93,80,134],[80,135,80,164],[72,145,72,164],[73,84,73,142],[73,145,73,164],[74,84,74,142],[74,145,74,164],[77,83,77,109],[77,110,77,119],[77,120,77,129],[77,130,77,132],[77,133,77,146],[77,147,77,157],[77,158,77,159],[77,160,77,162],[77,163,77,164],[67,123,67,130],[67,132,67,151],[67,152,67,159],[67,160,67,161],[67,162,67,165],[70,84,70,142],[70,145,70,165],[71,84,71,142],[71,145,71,164],[67,97,67,98],[67,99,67,101],[67,102,67,103],[67,104,67,114],[67,115,67,121],[57,84,57,164],[60,84,60,150],[60,152,61,165],[61,84,61,150],[64,83,64,85],[64,86,64,96],[64,97,64,98],[64,99,64,101],[64,102,64,103],[64,104,64,119],[64,120,64,158],[64,159,64,165],[19,84,22,109],[79,1,79,9],[79,10,79,26],[79,27,79,32],[79,33,79,51],[79,52,79,81],[67,21,67,31],[67,0,67,2],[67,3,67,13],[67,14,67,15],[67,16,67,18],[67,19,67,20],[57,1,57,81],[60,1,60,67],[60,69,61,82],[61,1,61,67],[64,0,64,2],[64,3,64,13],[64,14,64,15],[64,16,64,18],[64,19,64,20],[50,107,50,113],[47,107,47,118],[78,4,78,11],[67,86,67,96],[72,84,72,142],[78,84,78,86],[78,87,78,94],[78,95,78,98],[78,99,78,101],[78,102,78,109],[78,110,78,115],[78,116,78,123],[0,3,0,80],[1,3,1,80],[2,3,2,80],[3,19,3,27],[67,49,67,68],[73,1,73,59],[70,62,70,82],[71,1,71,59],[71,62,71,81],[72,1,72,59],[72,62,72,81],[73,62,73,81],[67,32,67,38],[67,40,67,47],[67,69,67,76],[67,77,67,78],[67,79,67,82],[70,1,70,59],[64,21,64,36],[64,37,64,75],[64,76,64,82],[3,167,3,247],[6,167,6,233],[6,235,7,248],[7,167,7,233],[10,166,10,168],[10,169,10,179],[10,180,10,181],[10,182,10,184],[10,185,10,186],[10,187,10,202],[10,203,10,241],[10,242,10,248],[13,235,13,242],[13,243,13,244],[13,245,13,248],[16,167,16,225],[16,228,16,248],[17,167,17,225],[17,228,17,247],[18,167,18,225],[18,228,18,247],[13,166,13,168],[13,169,13,179],[13,180,13,181],[13,182,13,184],[13,185,13,186],[13,187,13,197],[13,198,13,204],[13,206,13,213],[13,215,13,234],[19,228,19,247],[20,167,20,225],[20,228,20,247],[23,166,23,192],[23,193,23,202],[23,203,23,212],[23,213,23,215],[23,216,23,229],[23,230,23,240],[23,241,23,242],[23,243,23,245],[23,246,23,247],[25,176,25,192],[25,193,25,198],[25,199,25,217],[25,218,25,247],[26,167,26,175],[0,87,0,162],[1,87,2,162],[3,91,4,102],[3,105,4,131],[3,133,4,134],[3,135,4,139],[3,140,4,141],[26,176,26,217],[26,218,26,247],[24,167,24,169],[24,170,24,177],[24,178,24,181],[24,182,24,184],[24,185,24,192],[24,193,24,198],[24,199,24,206],[24,207,24,217],[24,218,24,247],[19,167,19,225],[25,167,25,175],[74,1,74,59],[74,62,74,81],[77,0,77,26],[77,27,77,36],[77,37,77,46],[77,47,77,49],[80,1,80,9],[80,10,80,51],[80,52,80,81],[77,50,77,63],[77,64,77,74],[77,75,77,76],[77,77,77,79],[77,80,77,81],[78,1,78,3],[78,12,78,15],[78,16,78,18],[78,19,78,26],[78,27,78,32],[78,33,78,40],[78,41,78,51],[78,52,78,81],[67,83,67,85],[81,16,81,23],[81,67,81,74],[81,75,81,82],[81,49,81,57],[82,4,82,12],[84,4,84,12],[81,26,81,34],[82,13,82,21],[82,22,82,30]]}
[null,null,null,"個 人 オ ー プ ン 例 会 企 画 書 フ ォ ー ム",null,null,null,null,null,null,null,null,null,null,null,null,null,null,null,null,null,null,null,null,null,null,null,null,null,null,null,null,null,null,null,null,null,null,null,null,null,null,null,null,null,null,null,null,null,null,null,null,null,null,null,null,null,null,null,null,null,null,null,null,null,null,null,null,null,null,null,null,null,null,null,null,null,null,null,null,null,null,null,null,null,null,null,"個 人 オ ー プ ン 例 会 企 画 書 フ ォ ー ム"]
[null,null,null,"入　力　シ　ー　ト",null,null,null,null,null,null,null,null,null,null,null,null,null,null,null,null,null,null,null,null,null,null,null,null,null,null,null,null,null,null,null,null,null,null,null,null,null,null,null,null,null,null,null,null,null,null,null,null,null,null,null,null,null,null,null,null,null,null,null,null,null,null,null,null,null,null,null,null,null,null,null,null,null,null,null,null,null,null,null,null,null,null,null,"シ ー ト 入 力 説 明 書",null,null,null,null,null,null,null,null,null,null,null,null,null,null,null,null,null,null,null,null,null,null,null,null,null,null,null,null,null,null,null,null,null,null,null,null,null,null,null,null,null,null,null,null,null,null,null,null,null,null,null,null,null,null,null,null,null,null,null,null,null,null,null,null,null,null,null,null,null,null,null,null,null,null,null,null,null,null,null,null,null,"記入例",null,null,null,null,null,null,null,null,null,"日帰り　",null,null,null,null,null,null,null,"複数回山行"]
[null,null,null,"個 人 オ ー プ ン 例 会 企 画 書 フ ォ ー ム"]
[null,"＊",null,null,null,"下記のシート",null,null,null,null,null,null,null,null,null,null,null,null,null,null,null,null,null,null,null,null,null,null,null,"欄に記入ください。",null,null,null,null,null,null,null,null,null,null,null,null,null,null,null,null,null,null,null,null,null,null,null,null,null,null,null,null,null,null,null,null,null,null,null,null,null,null,null,null,null,null,null,null,null,null,null,null,null,null,null,null,null,null,null,null,null,null,null,null,null,"今日は",null,null,null,null,null,null,null,null,null,null,null,null,null,{"$f":"TODAY()","v":"2017-09-14"},null,null,null,null,null,null,null,null,null,null,null,null,null,null,null,null,null,null,null,null,null,null,null,null,null,null,null,"（",null,{"$f":"IF(DB4=0,\" \",MID(\"日月火水木金土\",WEEKDAY(DB4),1))","v":"木"},null,null,null,null,"）",null,null,null,null,null,null,null,null,null,null,null,null,null,null,null,null,null,null,null,null,null,null,null,null,null,null,"しあわせの村と鵯越の森をウォーキングしよう!"]
[]
[]
[null,"＊",null,null,null,"常に、この原本から作成してください。作成して保存したシートから再度、上書き利用",null,null,null,null,null,null,null,null,null,null,null,null,null,null,null,null,null,null,null,null,null,null,null,null,null,null,null,null,null,null,null,null,null,null,null,null,null,null,null,null,null,null,null,null,null,null,null,null,null,null,null,null,null,null,null,null,null,null,null,null,null,null,null,null,null,null,null,null,null,null,null,null,null,null,null,null,null,null,null,"＊",null,null,"左記　　個人オープン例会企画書フォーム　シートに、『記入例』参照、『記入方法』",null,null,null,null,null,null,null,null,null,null,null,null,null,null,null,null,null,null,null,null,null,null,null,null,null,null,null,null,null,null,null,null,null,null,null,null,null,null,null,null,null,null,null,null,null,null,null,null,null,null,null,null,null,null,null,null,null,null,null,null,null,null,null,null,null,null,null,null,null,null,null,null,null,null,null,null,null,null,"ひよどりごえ森林公園からしあわせの村へ、緑のフィトンチッドを",null,null,null,null,null,null,null,null,null,null,null,null,null,null,null,null,null,null,null,null,null,null,null,null,null,null,null,null,null,null,null,null,null,null,null,null,null,null,null,null,null,null,null,null,null,null,null,null,null,null,null,null,null,null,null,null,null,null,null,null,null,null,null,null,null,null,null,"個　　人　　　　　オープン"]
[null,null,null,null,null,"すると、記述内容の変更消し忘れ等間違いのもととなります。",null,null,null,null,null,null,null,null,null,null,null,null,null,null,null,null,null,null,null,null,null,null,null,null,null,null,null,null,null,null,null,null,null,null,null,null,null,null,null,null,null,null,null,null,null,null,null,null,null,null,null,null,null,null,null,null,null,null,null,null,null,null,null,null,null,null,null,null,null,null,null,null,null,null,null,null,null,null,null,null,null,null,"を参考にして、ご記入ください。",null,null,null,null,null,null,null,null,null,null,null,null,null,null,null,null,null,null,null,null,null,null,null,null,null,null,null,null,null,null,null,null,null,null,null,null,null,null,null,null,null,null,null,null,null,null,null,null,null,null,null,null,null,null,null,null,null,null,null,null,null,null,null,null,null,null,null,null,null,null,null,null,null,null,null,null,null,null,"浴びて､雁並山、大尾山へウォーキングしませんか！"]
[]
[]
[null,"＊",null,null,null,"１ページ、３グリッド（３例会）を掲載します。記入事項の多いものも、簡潔にまとめ、フオ",null,null,null,null,null,null,null,null,null,null,null,null,null,null,null,null,null,null,null,null,null,null,null,null,null,null,null,null,null,null,null,null,null,null,null,null,null,null,null,null,null,null,null,null,null,null,null,null,null,null,null,null,null,null,null,null,null,null,null,null,null,null,null,null,null,null,null,null,null,null,null,null,null,null,null,null,null,null,null,"＊",null,null,"個人オープン例会案内原稿　〆切日　毎月１５日迄に、〆切日月の翌月から３ヶ月間",null,null,null,null,null,null,null,null,null,null,null,null,null,null,null,null,null,null,null,null,null,null,null,null,null,null,null,null,null,null,null,null,null,null,null,null,null,null,null,null,null,null,null,null,null,null,null,null,null,null,null,null,null,null,null,null,null,null,null,null,null,null,null,null,null,null,null,null,null,null,null,null,null,null,null,null,null,1,null,null,"2017-10-14",null,null,null,null,null,null,null,null,null,null,"（",null,{"$f":"IF(FN11=0,\" \",MID(\"日月火水木金土\",WEEKDAY(FN11),1))","v":"土"},null,null,"）",null,"集合場所・時間",null,null,null,null,null,null,null,null,null,null,null,null,null,null,null,"神戸電鉄　鵯越駅改札前",null,null,null,null,null,null,null,null,null,null,null,null,null,null,null,null,null,null,null,null,null,null,null,null,null,null,null,null,null,null,null,null,null,null,null,null,null,null,"09:00:00"]
[]
[]
[null,null,null,null,null,"ーム範囲内に収まるよう記入ください。",null,null,null,null,null,null,null,null,null,null,null,null,null,null,null,null,null,null,null,null,null,null,null,null,null,null,null,null,null,null,null,null,null,null,null,null,null,null,null,null,null,null,null,null,null,null,null,null,null,null,null,null,null,null,null,null,null,null,null,null,null,null,null,null,null,null,null,null,null,null,null,null,null,null,null,null,null,null,null,null,null,null,"迄の、山行実施予定日のものを記載、送付ください。オープン例会案内は、機関誌「や",null,null,null,null,null,null,null,null,null,null,null,null,null,null,null,null,null,null,null,null,null,null,null,null,null,null,null,null,null,null,null,null,null,null,null,null,null,null,null,null,null,null,null,null,null,null,null,null,null,null,null,null,null,null,null,null,null,null,null,null,null,null,null,null,null,null,null,null,null,null,null,null,null,null,null,null,null,{"$f":"IF(FK11=1,\"２\",IF(FN14>0,\"～\",\" \"))","v":"２"},null,null,"2017-10-26",null,null,null,null,null,null,null,null,null,null,{"$f":"IF(FN14=0,\" \",\"（\")","v":"（"},null,{"$f":"IF(FN14=0,\" \",MID(\"日月火水木金土\",WEEKDAY(FN14),1))","v":"木"},null,null,{"$f":"IF(FN14=0,\" \",\"）\")","v":"）"},null,{"$f":"IF(FO29,\"講習形態\",\"山行形態\")","v":"山行形態"},null,null,null,null,null,null,null,null,null,null,{"$f":"IF(FX29,\"座学\",\" \")","v":" "},null,null,null,null,null,null,null,{"$f":"IF(GK28=1,\"車中泊\",IF(GK28=2,\"前夜泊\",IF(GG29,\"実技\",\" \")))","v":" "},null,null,null,null,null,null,null,null,"日帰り",null,null,null,null,null,null,null,null,null,null,null,null,null,null,null,null,null,null,null,{"$f":"IF(HZ28,\"事前トレ\",\" \")","v":" "},null,null,null,null,null,null,null,"・",null,{"$f":"IF(IH28,\"MT\",\" \")","v":" "}]
[]
[]
[null,null,null,null,null,null,null,null,null,null,null,null,null,null,null,null,null,null,null,null,null,null,null,null,null,null,null,null,null,null,null,null,null,null,null,null,null,null,null,null,null,null,null,null,null,null,null,null,null,null,null,null,null,null,null,null,null,null,null,null,null,null,null,null,null,null,null,null,null,null,null,null,null,null,null,null,null,null,null,null,null,null,null,null,null,null,null,null,"まなかま」に掲載され、月初日曜日に印刷、送付されます。なかまを募集し、山行計画",null,null,null,null,null,null,null,null,null,null,null,null,null,null,null,null,null,null,null,null,null,null,null,null,null,null,null,null,null,null,null,null,null,null,null,null,null,null,null,null,null,null,null,null,null,null,null,null,null,null,null,null,null,null,null,null,null,null,null,null,null,null,null,null,null,null,null,null,null,null,null,null,null,null,null,null,null,null,"鵯越駅～丸山・大日市街地～ひよどり台～公園管理事務",null,null,null,null,null,null,null,null,null,null,null,null,null,null,null,null,null,null,null,null,null,null,null,null,null,null,null,null,null,null,null,null,null,null,null,null,null,null,null,null,null,null,null,null,null,null,null,null,null,null,null,null,null,null,null,null,null,null,null,null,"参加要件等・備考"]
[null,"＊",null,null,null,"謄写版モノクロ印刷です。青色文字色などは薄れて不鮮明な印刷となり,メールア",null,null,null,null,null,null,null,null,null,null,null,null,null,null,null,null,null,null,null,null,null,null,null,null,null,null,null,null,null,null,null,null,null,null,null,null,null,null,null,null,null,null,null,null,null,null,null,null,null,null,null,null,null,null,null,null,null,null,null,null,null,null,null,null,null,null,null,null,null,null,null,null,null,null,null,null,null,null,null,null,null,null,"書を提出するに、見合った募集期日、山行日の設定をお願いします。",null,null,null,null,null,null,null,null,null,null,null,null,null,null,null,null,null,null,null,null,null,null,null,null,null,null,null,null,null,null,null,null,null,null,null,null,null,null,null,null,null,null,null,null,null,null,null,null,null,null,null,null,null,null,null,null,null,null,null,null,null,null,null,null,null,null,null,null,null,null,null,null,null,null,null,null,null,null,"所～ひよどり森林公園～しあわせの村～雁並山～大尾山",null,null,null,null,null,null,null,null,null,null,null,null,null,null,null,null,null,null,null,null,null,null,null,null,null,null,null,null,null,null,null,null,null,null,null,null,null,null,null,null,null,null,null,null,null,null,null,null,null,null,null,null,null,null,null,null,null,null,null,null,"六甲山半縦走出来"]
[null,null,null,null,null,"ド記入時の青色表示など、すべて黒色変換で記入ください。",null,null,null,null,null,null,null,null,null,null,null,null,null,null,null,null,null,null,null,null,null,null,null,null,null,null,null,null,null,null,null,null,null,null,null,null,null,null,null,null,null,null,null,null,null,null,null,null,null,null,null,null,null,null,null,null,null,null,null,null,null,null,null,null,null,null,null,null,null,null,null,null,null,null,null,null,null,null,null,null,null,null,null,null,null,null,null,null,null,null,null,null,null,null,null,null,null,null,null,null,null,null,null,null,null,null,null,null,null,null,null,null,null,null,null,null,null,null,null,null,null,null,null,null,null,null,null,null,null,null,null,null,null,null,null,null,null,null,null,null,null,null,null,null,null,null,null,null,null,null,null,null,null,null,null,null,null,null,null,null,null,"～星和台南BT",null,null,null,null,null,null,null,null,null,null,null,null,null,null,null,null,null,null,null,null,null,null,null,null,null,null,null,null,null,null,null,null,null,null,null,null,null,null,null,null,null,null,null,null,null,null,null,null,null,null,null,null,null,null,null,null,null,null,null,null,"る人。１０／１４、１０／"]
[null,null,null,null,null,null,null,null,null,null,null,null,null,null,null,null,null,null,null,null,null,null,null,null,null,null,null,null,null,null,null,null,null,null,null,null,null,null,null,null,null,null,null,null,null,null,null,null,null,null,null,null,null,null,null,null,null,null,null,null,null,null,null,null,null,null,null,null,null,null,null,null,null,null,null,null,null,null,null,null,null,null,null,null,"『記入方法』",null,null,null,null,null,null,null,null,null,null,null,null,null,null,null,null,null,null,null,null,null,null,null,null,null,null,null,null,null,null,null,null,null,null,null,null,null,null,null,null,null,null,null,null,null,null,null,null,null,null,null,null,null,null,null,null,null,null,null,null,null,null,null,null,null,null,null,null,null,null,null,null,null,null,null,null,null,null,null,null,null,null,null,null,null,null,null,null,null,null,null,null,null,null,null,null,null,null,null,null,null,null,null,null,null,null,null,null,null,null,null,null,null,null,null,null,null,null,null,null,null,null,null,null,null,null,null,null,null,null,null,null,null,null,null,null,null,null,null,null,null,null,null,"２６の２回開催。"]
[null,"＊",null,null,null,"文字印刷幅などのため、１（結合）セル内での文字記入可能範囲は、シート表示より"]
[]
[]
[null,null,null,null,null,"狭まり、概ね右欄『記入方法』記載の　位置迄です。",null,null,null,null,null,null,null,null,null,null,null,null,null,null,null,null,null,null,null,null,null,null,null,null,null,null,null,null,null,null,null,null,null,null,null,null,null,null,null,null,null,null,null,null,null,null,null,null,null,null,null,null,null,null,null,null,null,null,null,null,null,null,null,null,null,null,null,null,null,null,null,null,null,null,null,null,null,null,null,null,null,null,null,null,null,null,null,null,null,null,null,null,null,null,null,null,null,null,null,null,null,null,null,null,null,null,null,null,null,null,null,null,null,null,null,null,null,null,null,null,null,null,null,null,null,null,null,null,null,null,null,null,null,null,null,null,null,null,null,null,null,null,null,null,null,null,null,null,null,null,null,null,null,null,null,null,null,null,null,null,"歩行距離・時間（休含）",null,null,null,null,null,null,null,null,null,null,null,null,null,null,null,null,null,null,null,null,null,null,null,null,null,null,"募集人数",null,null,null,null,null,null,null,null,null,"何人でも",null,null,null,null,null,null,null,null,null,"人",null,null,"募集〆切日",null,null,null,null,null,null,null,null,null,null,null,null,null,"2017-10-05",null,null,null,null,null,null,null,null,null,null,"（",null,{"$f":"IF(HW24=0,\" \",MID(\"日月火水木金土\",WEEKDAY(HW24),1))","v":"木"},null,null,"）"]
[null,null,null,null,null,null,null,null,null,null,null,null,null,null,null,null,null,null,null,null,null,null,null,null,null,null,null,null,null,null,null,null,null,null,null,null,null,null,null,null,null,null,null,null,null,null,null,null,null,null,null,null,null,null,null,null,null,null,null,null,null,null,null,null,null,null,null,null,null,null,null,null,null,null,null,null,null,null,null,null,null,null,null,null,"＊",null,null,"各欄　文字入力は、各欄行以内に納めてください。",null,null,null,null,null,null,null,null,null,null,null,null,null,null,null,null,null,null,null,null,null,null,null,null,null,null,null,null,null,null,null,null,null,null,null,null,null,null,null,null,null,null,null,null,null,null,null,null,null,null,null,null,null,null,null,null,null,null,null,null,null,null,null,null,null,null,null,null,null,null,null,null,null,null,null,null,null,null,null,"約",null,null,15.5,null,null,null,null,null,null,null,"km",null,null,null,"約",null,null,7.5,null,null,null,null,null,null,null,"時間",null,null,null,null,null,"レベル",null,null,null,null,null,null,null,"HB",null,null,null,null,null,null,null,null,null,null,"交通手段・参加費等"]
[null,"＊",null,null,null,"謄写版印刷状態により、文字フォントは、１０P以下、小文字でのゴシック体などは文字",null,null,null,null,null,null,null,null,null,null,null,null,null,null,null,null,null,null,null,null,null,null,null,null,null,null,null,null,null,null,null,null,null,null,null,null,null,null,null,null,null,null,null,null,null,null,null,null,null,null,null,null,null,null,null,null,null,null,null,null,null,null,null,null,null,null,null,null,null,null,null,null,null,null,null,null,null,null,null,null,null,"エクセル画面で各行内に文字表示されていても、印刷文字幅から、実際の印刷表示で",null,null,null,null,null,null,null,null,null,null,null,null,null,null,null,null,null,null,null,null,null,null,null,null,null,null,null,null,null,null,null,null,null,null,null,null,null,null,null,null,null,null,null,null,null,null,null,null,null,null,null,null,null,null,null,null,null,null,null,null,null,null,null,null,null,null,null,null,null,null,null,null,null,null,null,null,null,null,null,"申込先",null,null,null,null,null,null,null,null,"長峰　峰子",null,null,null,null,null,null,null,null,null,null,null,null,null,null,null,null,"TEL",null,null,null,null,null,"090-3650-1414",null,null,null,null,null,null,null,null,null,null,null,null,null,null,null,null,null,null,"神戸電鉄　神戸市バス"]
[null,null,null,null,null,"印刷潰れ、滲みなど発生、使用避けてください。",null,null,null,null,null,null,null,null,null,null,null,null,null,null,null,null,null,null,null,null,null,null,null,null,null,null,null,null,null,null,null,null,null,null,null,null,null,null,null,null,null,null,null,null,null,null,null,null,null,null,null,null,null,null,null,null,null,null,null,null,null,null,null,null,null,null,null,null,null,null,null,null,null,null,null,null,null,null,null,null,null,"は、文字がカットされます。目安は",null,null,null,null,null,null,null,null,null,null,null,null,null,null,null,null,null,null,null,null,null,null,null,null,null,null,null,null,null,null,null,null,null,null,null,null,null,null,null,null,null,null,null,null,null,null,null,null,null,null,null,null,null,null,null,null,null,null,null,null,null,null,null,null,null,null,null,null,null,null,null,null,null,null,null,null,null,null,null,"メール",null,null,null,null,null,null,null,null,"minekoyamadaisuki-5050@yahoo.co.jp",null,null,null,null,null,null,null,null,null,null,null,null,null,null,null,null,null,null,null,null,null,null,null,null,null,null,null,null,null,null,null,null,null,null,null,null,null,null,null,null,null,"約１,０００円（三宮起点）"]
[null,null,null,null,null,null,null,null,null,null,null,null,null,null,null,null,null,null,null,null,null,null,null,null,null,null,null,null,null,null,null,null,null,null,null,null,null,null,null,null,null,null,null,null,null,null,null,null,null,null,null,null,null,null,null,null,null,null,null,null,null,null,null,null,null,null,null,null,null,null,null,null,null,null,null,null,null,null,null,null,null,null,null,null,null,null,"文字印刷表示可能ライン",null,null,null,null,null,null,null,null,null,null,null,null,null,null,null,null,null,null,null,null,null,null,null,null,null,null,null,null,null,null,null,null,null,null,null,null,null,null,null,null,null,null,null,null,null,null,null,null,null,null,null,null,null,null,null,null,null,null,null,null,null,null,null,null,null,null,null,null,null,null,null,null,null,null,null,null,null,null,null,null,null,null,"記入例",null,null,null,null,null,null,null,null,null,"日帰り　"]
[null,"＊"]
[null,"＊",null,null,null,"記入完了後、印刷プレビュー画面(メニューバー　ファイル　クリック　印刷　クリック）で、",null,null,null,null,null,null,null,null,null,null,null,null,null,null,null,null,null,null,null,null,null,null,null,null,null,null,null,null,null,null,null,null,null,null,null,null,null,null,null,null,null,null,null,null,null,null,null,null,null,null,null,null,null,null,null,null,null,null,null,null,null,null,null,null,null,null,null,null,null,null,null,null,null,null,null,null,null,null,null,null,"以降は印刷表示できません。",null,null,null,null,null,null,null,null,null,null,null,null,null,null,null,null,null,null,null,null,null,null,null,null,null,null,null,null,null,null,null,null,null,null,null,null,null,null,null,null,null,null,null,null,null,null,null,null,null,null,null,null,null,null,null,null,null,null,null,null,null,null,null,null,null,null,null,null,null,null,null,null,null,null,null,null,null,null,null,null,"関西のマッターホルンとその北尾根から台高を～"]
[]
[]
[null,null,null,null,null,"必ず表示確認してください。印刷はPDFファイル変換で行うため若干縮小されるため、",null,null,null,null,null,null,null,null,null,null,null,null,null,null,null,null,null,null,null,null,null,null,null,null,null,null,null,null,null,null,null,null,null,null,null,null,null,null,null,null,null,null,null,null,null,null,null,null,null,null,null,null,null,null,null,null,null,null,null,null,null,null,null,null,null,null,null,null,null,null,null,null,null,null,null,null,null,null,"＊",null,null,"印刷プレビュー画面(メニューバー　ファイル　クリック　印刷　クリック）で、必ず表示確",null,null,null,null,null,null,null,null,null,null,null,null,null,null,null,null,null,null,null,null,null,null,null,null,null,null,null,null,null,null,null,null,null,null,null,null,null,null,null,null,null,null,null,null,null,null,null,null,null,null,null,null,null,null,null,null,null,null,null,null,null,null,null,null,null,null,null,null,null,null,null,null,null,null,null,null,null,null,null,"台高山脈の北端の鋭峰、高見山の北尾根稜線、黒石山～船峯",null,null,null,null,null,null,null,null,null,null,null,null,null,null,null,null,null,null,null,null,null,null,null,null,null,null,null,null,null,null,null,null,null,null,null,null,null,null,null,null,null,null,null,null,null,null,null,null,null,null,null,null,null,null,null,null,null,null,null,null,null,null,null,null,null,null,null,"個　　人　　　　　オープン"]
[null,null,null,null,null,"印刷レビュー表示より１文字ぐらい減らして、文字切れなど修正してください。",null,null,null,null,null,null,null,null,null,null,null,null,null,null,null,null,null,null,null,null,null,null,null,null,null,null,null,null,null,null,null,null,null,null,null,null,null,null,null,null,null,null,null,null,null,null,null,null,null,null,null,null,null,null,null,null,null,null,null,null,null,null,null,null,null,null,null,null,null,null,null,null,null,null,null,null,null,null,null,null,null,"認してください。印刷はPDFファイル変換して行うため若干縮小されますので、印刷プレ",null,null,null,null,null,null,null,null,null,null,null,null,null,null,null,null,null,null,null,null,null,null,null,null,null,null,null,null,null,null,null,null,null,null,null,null,null,null,null,null,null,null,null,null,null,null,null,null,null,null,null,null,null,null,null,null,null,null,null,null,null,null,null,null,null,null,null,null,null,null,null,null,null,null,null,null,null,null,null,"～天狗山、高見山頂上から台高山脈への眺望をてにして縦走！"]
[]
[]
[null,null,null,null,null,null,null,null,null,null,null,null,null,null,null,null,null,null,null,null,null,null,null,null,null,null,null,null,null,null,null,null,null,null,null,null,null,null,null,null,null,null,null,null,null,null,null,null,null,null,null,null,null,null,null,null,null,null,null,null,null,null,null,null,null,null,null,null,null,null,null,null,null,null,null,null,null,null,null,null,null,null,null,null,null,null,null,"ビュー表示より、1文字ぐらい、少なくしてください。",null,null,null,null,null,null,null,null,null,null,null,null,null,null,null,null,null,null,null,null,null,null,null,null,null,null,null,null,null,null,null,null,null,null,null,null,null,null,null,null,null,null,null,null,null,null,null,null,null,null,null,null,null,null,null,null,null,null,null,null,null,null,null,null,null,null,null,null,null,null,null,null,null,null,null,null,null,null,null,null,null,"2017-10-19",null,null,null,null,null,null,null,null,null,null,"（",null,{"$f":"IF(FN37=0,\" \",MID(\"日月火水木金土\",WEEKDAY(FN37),1))","v":"木"},null,null,"）",null,"集合場所・時間",null,null,null,null,null,null,null,null,null,null,null,null,null,null,null,"近鉄榛原駅改札口前",null,null,null,null,null,null,null,null,null,null,null,null,null,null,null,null,null,null,null,null,null,null,null,null,null,null,null,null,null,null,null,null,null,null,null,null,null,null,"08:30:00"]
[]
[]
[null,"＊",null,null,null,"1例会案内（企画）で1ファイルです。複数例会企画は、それぞれ作成してください。",null,null,null,null,null,null,null,null,null,null,null,null,null,null,null,null,null,null,null,null,null,null,null,null,null,null,null,null,null,null,null,null,null,null,null,null,null,null,null,null,null,null,null,null,null,null,null,null,null,null,null,null,null,null,null,null,null,null,null,null,null,null,null,null,null,null,null,null,null,null,null,null,null,null,null,null,null,null,null,null,null,null,null,null,null,null,null,null,null,null,null,null,null,null,null,null,null,null,null,null,null,null,null,null,null,null,null,null,null,null,null,null,null,null,null,null,null,null,null,null,null,null,null,null,null,null,null,null,null,null,null,null,null,null,null,null,null,null,null,null,null,null,null,null,null,null,null,null,null,null,null,null,null,null,null,null,null,null,null,null,{"$f":"IF(FK37=1,\"２\",IF(FN40>0,\"～\",\" \"))","v":" "},null,null,null,null,null,null,null,null,null,null,null,null,null,{"$f":"IF(FN40=0,\" \",\"（\")","v":" "},null,{"$f":"IF(FN40=0,\" \",MID(\"日月火水木金土\",WEEKDAY(FN40),1))","v":" "},null,null,{"$f":"IF(FN40=0,\" \",\"）\")","v":" "},null,{"$f":"IF(FO55,\"講習形態\",\"山行形態\")","v":"山行形態"},null,null,null,null,null,null,null,null,null,null,{"$f":"IF(FX55,\"座学\",\" \")","v":" "},null,null,null,null,null,null,null,{"$f":"IF(GK54=1,\"車中泊\",IF(GK54=2,\"前夜泊\",IF(GG55,\"実技\",\" \")))","v":" "},null,null,null,null,null,null,null,null,"日帰り",null,null,null,null,null,null,null,null,null,null,null,null,null,null,null,null,null,null,null,{"$f":"IF(HZ54,\"事前トレ\",\" \")","v":" "},null,null,null,null,null,null,null,"・",null,{"$f":"IF(IH54,\"MT\",\" \")","v":" "}]
[]
[]
[null,null,null,null,null,"ファイル名を、「山行日付 個人例会〇〇月号　山行名　（氏名）」　と付けて保存、",null,null,null,null,null,null,null,null,null,null,null,null,null,null,null,null,null,null,null,null,null,null,null,null,null,null,null,null,null,null,null,null,null,null,null,null,null,null,null,null,null,null,null,null,null,null,null,null,null,null,null,null,null,null,null,null,null,null,null,null,null,null,null,null,null,null,null,null,null,null,null,null,null,null,null,null,null,null,null,null,null,null,null,null,null,null,null,null,null,null,null,null,null,null,null,null,null,null,null,null,null,null,null,null,null,null,null,null,null,null,null,null,null,null,null,null,null,null,null,null,null,null,null,null,null,null,null,null,null,null,null,null,null,null,null,null,null,null,null,null,null,null,null,null,null,null,null,null,null,null,null,null,null,null,null,null,null,null,null,null,null,"近鉄榛原駅→バス→下平野～吉野室生寺針線～瀧野～",null,null,null,null,null,null,null,null,null,null,null,null,null,null,null,null,null,null,null,null,null,null,null,null,null,null,null,null,null,null,null,null,null,null,null,null,null,null,null,null,null,null,null,null,null,null,null,null,null,null,null,null,null,null,null,null,null,null,null,null,"参 加 要 件 等"]
[null,null,null,null,null,"会　Eメールアドレス　mayanakama@yahoo.co.jp　宛にファイル添付、送付ください。",null,null,null,null,null,null,null,null,null,null,null,null,null,null,null,null,null,null,null,null,null,null,null,null,null,null,null,null,null,null,null,null,null,null,null,null,null,null,null,null,null,null,null,null,null,null,null,null,null,null,null,null,null,null,null,null,null,null,null,null,null,null,null,null,null,null,null,null,null,null,null,null,null,null,null,null,null,null,null,null,"同じ日帰り山行を",null,null,null,null,null,null,null,null,null,null,null,null,null,null,null,null,null,null,null,null,null,null,null,null,null,null,null,null,null,null,null,null,null,null,null,null,null,null,null,null,null,null,null,null,null,null,null,null,null,null,null,null,null,null,null,null,null,null,null,null,null,null,null,null,null,null,null,null,null,null,null,null,null,null,null,null,null,null,null,null,"差杉峠～黒石山～船峯山～天狗山～高見山頂上～小峠",null,null,null,null,null,null,null,null,null,null,null,null,null,null,null,null,null,null,null,null,null,null,null,null,null,null,null,null,null,null,null,null,null,null,null,null,null,null,null,null,null,null,null,null,null,null,null,null,null,null,null,null,null,null,null,null,null,null,null,null,"初心岩教室修了者"]
[null,null,null,null,null,null,null,null,null,null,null,null,null,null,null,null,null,null,null,null,null,null,null,null,null,null,null,null,null,null,null,null,null,null,null,null,null,null,null,null,null,null,null,null,null,null,null,null,null,null,null,null,null,null,null,null,null,null,null,null,null,null,null,null,null,null,null,null,null,null,null,null,null,null,null,null,null,null,null,null,null,null,null,null,null,null,"２回に渡って開催",null,null,null,null,null,null,null,null,null,null,null,null,null,null,null,null,null,null,null,null,"山行月日は、数字○○/○○で記入。",null,null,null,null,null,null,null,null,null,null,null,null,null,null,null,null,null,null,null,null,null,null,null,null,null,null,null,null,null,null,null,null,null,null,null,null,null,null,null,null,null,null,null,null,null,null,null,null,null,null,null,null,null,null,null,null,null,null,null,"～登山口→バス",null,null,null,null,null,null,null,null,null,null,null,null,null,null,null,null,null,null,null,null,null,null,null,null,null,null,null,null,null,null,null,null,null,null,null,null,null,null,null,null,null,null,null,null,null,null,null,null,null,null,null,null,null,null,null,null,null,null,null,null,"鎖場歩行有"]
[null,null,null,null,null,null,null,null,null,null,null,null,null,null,null,null,null,null,null,null,null,null,null,null,null,null,null,null,null,null,null,null,null,null,null,null,null,null,null,null,null,null,null,null,null,null,null,null,null,null,null,null,null,null,null,null,null,null,null,null,null,null,null,null,null,null,null,null,null,null,null,null,null,null,null,null,null,null,null,null,null,null,null,null,null,null,"の場合は、１を",null,null,null,null,null,null,null,null,null,null,null,null,null,null,null,null,null,null,null,null,"月日の文字は記入不要、自動表示。"]
[null,null,"山行（講習）形態　該当事項を、クリック　チェックを記入、選択してください。",null,null,null,null,null,null,null,null,null,null,null,null,null,null,null,null,null,null,null,null,null,null,null,null,null,null,null,null,null,null,null,null,null,null,null,null,null,null,null,null,null,null,null,null,null,null,null,null,null,null,null,null,null,null,null,null,null,null,null,null,null,null,null,null,null,null,null,null,null,null,null,null,null,null,null,null,null,null,null,null,null,null,null,"記入ください。",null,null,null,null,null,null,null,null,null,null,null,null,null,null,null,null,null,null,null,null,"CF：１２／１５で記入。",null,null,null,null,null,null,null,null,null,null,null,null,null,null,null,null,null,null,null,null,null,null,null,null,null,null,null,null,null,null,null,null,null,null,null,null,null,"(曜日）は入力不要。"]
[]
[]
[null,null,null,null,null,null,null,null,null,null,null,null,null,null,null,null,null,null,null,null,null,null,null,null,null,null,null,null,null,null,null,null,null,null,null,null,null,null,null,null,null,null,null,null,null,null,null,null,null,null,null,null,null,null,null,null,null,null,null,null,null,null,null,null,null,null,null,null,null,null,null,null,null,null,null,null,null,null,null,null,null,null,null,null,null,null,"２は自動表示",null,null,null,null,null,null,null,null,null,null,null,null,null,null,null,null,null,null,null,null,{"$f":"IF(AND(DB4>=42994,DB4<=43100),43101,IF(AND(DB4>=43359,DB4<=43465),43466,IF(AND(DB4>=43724,DB4<=43830),43831,IF(AND(DB4>=44090,DB4<=44196),44197,IF(AND(DB4>=44455,DB4<=44561),44562,IF(AND(DB4>=44820,DB4<=44926),44927,\" \"))))))","v":" "},null,null,null,null,null,null,null,null,null,null,null,{"$f":"IF(DD50=\" \",\" \",\"以降実施山行日分は\")","v":" "},null,null,null,null,null,null,null,null,null,null,null,null,null,null,null,null,null,null,null,null,null,null,null,null,null,"自動表示されます。",null,null,null,null,null,null,null,null,null,null,null,null,null,null,null,null,null,null,null,null,"歩行距離・時間（休含）",null,null,null,null,null,null,null,null,null,null,null,null,null,null,null,null,null,null,null,null,null,null,null,null,null,null,"募集人数",null,null,null,null,null,null,null,null,null,14,null,null,null,null,null,null,null,null,null,"人",null,null,"募集〆切日",null,null,null,null,null,null,null,null,null,null,null,null,null,"2017-10-02",null,null,null,null,null,null,null,null,null,null,"（",null,{"$f":"IF(HW50=0,\" \",MID(\"日月火水木金土\",WEEKDAY(HW50),1))","v":"月"},null,null,"）"]
[null,null,null,null,null,null,null,null,null,null,null,null,null,null,null,null,null,null,null,null,null,null,null,null,null,null,null,null,null,null,null,null,null,null,null,null,null,null,null,null,null,null,null,null,null,null,null,null,null,null,null,null,null,null,null,null,null,null,null,null,null,null,null,null,null,null,null,null,null,null,null,null,null,null,null,null,null,null,null,null,null,null,null,null,null,null,"されます。",null,null,null,null,null,null,null,null,null,null,null,null,null,null,null,null,null,null,null,null,{"$f":"IF(AND(DB4>=42994,DB4<=43100),\"2018\",IF(AND(DB4>=43359,DB4<=43465),\"2019\",IF(AND(DB4>=43724,DB4<=43830),\"2020\",IF(AND(DB4>=44090,DB4<=44196),\"2021\",IF(AND(DB4>=44455,DB4<=44561),\"2022\",IF(AND(DB4>=44820,DB4<=44926),\"2023\",\" \"))))))","v":" "},null,null,null,null,null,null,{"$f":"IF(DD51=\" \",\"  \",\"/○○/○○で記入。\")","v":"  "},null,null,null,null,null,null,null,null,null,null,null,null,null,null,null,null,null,null,null,null,null,null,null,null,null,null,null,null,null,null,null,null,null,null,null,null,null,null,null,null,null,null,null,null,null,null,null,null,null,null,null,null,"約",null,null,27,null,null,null,null,null,null,null,"km",null,null,null,"約",null,null,22,null,null,null,null,null,null,null,"時間",null,null,null,null,null,"レベル",null,null,null,null,null,null,null,"AB",null,null,null,null,null,null,null,null,null,null,"交通手段・参加費等"]
[null,null,null,null,null,null,null,null,null,null,null,null,null,null,null,null,null,null,null,null,null,null,null,null,null,null,null,null,null,null,null,null,null,null,null,null,null,null,null,null,null,null,null,null,null,null,null,null,null,null,null,null,null,null,null,null,null,null,null,null,null,null,null,null,null,null,null,null,null,null,null,null,null,null,null,null,null,null,null,null,null,null,null,null,null,null,null,null,null,null,null,null,null,null,null,null,null,null,null,null,null,null,null,null,null,null,null,{"$f":"IF(DI52=\" \",\"  \",\"CF：\")","v":"  "},null,null,null,null,{"$f":"IF(AND(DB4>=42994,DB4<=43100),\"2018\",IF(AND(DB4>=43359,DB4<=43465),\"2019\",IF(AND(DB4>=43724,DB4<=43830),\"2020\",IF(AND(DB4>=44090,DB4<=44196),\"2021\",IF(AND(DB4>=44455,DB4<=44561),\"2022\",IF(AND(DB4>=44820,DB4<=44926),\"2023\",\" \"))))))","v":" "},null,null,null,null,null,{"$f":"IF(DI52=\" \",\" \",\"/1/25で記入。\")","v":" "},null,null,null,null,null,null,null,null,null,null,null,null,null,null,null,null,null,null,null,null,null,null,null,null,null,null,null,null,null,null,null,null,null,null,null,null,null,null,null,null,null,null,null,null,null,null,null,null,"申込先",null,null,null,null,null,null,null,null,"鎗高　山太郎",null,null,null,null,null,null,null,null,null,null,null,null,null,null,null,null,"TEL",null,null,null,null,null,"090-3456-4321",null,null,null,null,null,null,null,null,null,null,null,null,null,null,null,null,null,null,"近鉄・奈良交通・コミュバス"]
[null,null,null,null,null,null,null,null,null,null,null,null,null,null,null,null,null,null,null,null,null,null,null,null,null,null,null,null,null,null,null,null,null,null,null,null,null,null,null,null,null,null,null,null,null,null,null,null,null,null,null,null,null,null,null,null,null,null,null,null,null,null,null,null,null,null,null,null,null,null,null,null,null,null,null,null,null,null,null,null,null,null,null,null,null,null,null,null,null,null,null,null,null,null,null,null,null,null,null,null,null,null,null,null,null,null,null,null,null,null,null,null,null,null,null,null,null,null,null,null,null,null,null,null,null,null,null,null,null,null,null,null,null,null,null,null,null,null,null,null,null,null,null,null,null,null,null,null,null,null,null,null,null,null,null,null,null,null,null,null,null,null,null,null,null,null,null,"メール",null,null,null,null,null,null,null,null,"santarou_721@yahoo.co.jp",null,null,null,null,null,null,null,null,null,null,null,null,null,null,null,null,null,null,null,null,null,null,null,null,null,null,null,null,null,null,null,null,null,null,null,null,null,null,null,null,null,"約３,５００円　近鉄運賃・バス代"]
[null,null,null,null,null,null,null,null,null,null,null,null,null,null,null,null,null,null,null,null,null,null,null,null,null,null,null,null,null,null,null,null,null,null,null,null,null,null,null,null,null,null,null,null,null,null,null,null,null,null,null,null,null,null,null,null,null,null,null,null,null,null,null,null,null,null,null,null,null,null,null,null,null,null,null,null,null,null,null,null,null,null,null,null,null,null,null,null,null,null,null,null,null,null,null,null,null,"左欄　○□にチェック記入",null,null,null,null,null,null,null,null,null,null,null,null,null,null,null,null,null,null,null,null,null,null,null,null,null,null,null,null,null,null,null,null,null,null,null,null,null,null,null,null,null,null,null,null,null,null,null,null,null,"集合時間"]
[null,null,null,null,null,null,null,null,null,null,null,null,null,null,null,null,null,null,null,null,null,null,null,null,null,null,null,null,null,null,null,null,null,null,null,null,null,null,null,null,null,null,null,null,null,null,null,null,null,null,null,null,null,null,null,null,null,null,null,null,null,null,null,null,null,null,null,null,null,null,null,null,null,null,null,null,null,null,null,null,null,null,null,null,null,null,null,null,null,null,null,null,null,null,null,null,null,"自動表示されます",null,null,null,null,null,null,null,null,null,null,null,null,null,null,null,null,null,null,null,null,null,null,null,null,null,null,null,null,null,null,null,null,null,null,null,null,null,null,null,null,null,null,null,null,null,null,null,null,null,"○○：○○で記入"]
[null,null,null,null,null,null,null,null,null,null,null,null,null,null,null,null,null,null,null,null,null,null,null,null,null,null,null,null,null,null,null,null,null,null,null,null,null,null,null,null,null,null,null,null,null,null,null,null,null,null,null,null,null,null,null,null,null,null,null,null,null,null,null,null,null,null,null,null,null,null,null,null,null,null,null,null,null,null,null,null,null,null,null,null,null,null,null,null,null,null,null,null,null,null,null,null,null,null,null,null,null,null,null,null,null,null,null,null,null,null,null,null,null,null,null,null,null,null,null,null,null,null,null,null,null,null,null,null,null,null,null,null,null,null,null,null,null,null,null,null,null,null,null,null,null,null,null,null,null,null,null,null,null,null,null,null,null,null,null,null,null,null,null,null,null,null,null,null,null,null,null,null,"記入例",null,null,null,null,null,null,null,null,null,"宿泊山行"]
[]
[null,null,null,null,null,null,null,null,null,null,null,null,null,null,null,null,null,null,null,null,null,null,null,null,null,null,null,null,null,null,null,null,null,null,null,null,null,null,null,null,null,null,null,null,null,null,null,null,null,null,null,null,null,null,null,null,null,null,null,null,null,null,null,null,null,null,null,null,null,null,null,null,null,null,null,null,null,null,null,null,null,null,null,null,"山行名　標題　キャッチなど記入してください。",null,null,null,null,null,null,null,null,null,null,null,null,null,null,null,null,null,null,null,null,null,null,null,null,null,null,null,null,null,null,null,null,null,null,null,null,null,null,null,null,null,null,null,null,null,null,null,null,null,null,null,null,null,null,null,null,null,null,null,null,null,null,null,null,null,null,null,null,null,null,null,null,null,null,null,null,null,null,null,null,null,null,"錦秋の「北八ヶ岳」縦走に行きましょう！"]
[]
[]
[null,null,null,null,null,null,null,null,null,null,null,null,null,null,null,null,null,null,null,null,null,null,null,null,null,null,null,null,null,null,null,null,null,null,null,null,null,null,null,null,null,null,null,null,null,null,null,null,null,null,null,null,null,null,null,null,null,null,null,null,null,null,null,null,null,null,null,null,null,"個　　人　　　　　オープン",null,null,null,null,null,null,null,null,null,null,null,null,null,null,"山行内容、アピールポイントなどを記入してください。",null,null,null,null,null,null,null,null,null,null,null,null,null,null,null,null,null,null,null,null,null,null,null,null,null,null,null,null,null,null,null,null,null,null,null,null,null,null,null,null,null,null,null,null,null,null,null,null,null,null,null,null,null,null,null,null,null,null,null,null,null,null,null,null,null,null,null,"個　　人　　　　　オープン",null,null,null,null,null,null,null,null,null,null,null,null,null,null,"原生林・苔尽くしで活かされ、池沼が神秘的な雰囲気を漂わせ",null,null,null,null,null,null,null,null,null,null,null,null,null,null,null,null,null,null,null,null,null,null,null,null,null,null,null,null,null,null,null,null,null,null,null,null,null,null,null,null,null,null,null,null,null,null,null,null,null,null,null,null,null,null,null,null,null,null,null,null,null,null,null,null,null,null,null,"個　　人　　　　　オープン"]
[null,null,null,null,null,null,null,null,null,null,null,null,null,null,null,null,null,null,null,null,null,null,null,null,null,null,null,null,null,null,null,null,null,null,null,null,null,null,null,null,null,null,null,null,null,null,null,null,null,null,null,null,null,null,null,null,null,null,null,null,null,null,null,null,null,null,null,null,null,null,null,null,null,null,null,null,null,null,null,null,null,null,null,null,null,null,null,null,null,null,null,null,null,null,null,null,null,null,null,null,null,null,null,null,null,null,null,null,null,null,null,null,null,null,null,null,null,null,null,null,null,null,null,null,null,null,null,null,null,null,null,null,null,null,null,null,null,null,null,null,null,null,null,null,null,null,null,null,null,null,null,null,null,null,null,null,null,null,null,null,null,null,null,null,null,null,null,"る「北八ヶ岳」！、ゴールは百名山・蓼科山！"]
[]
[]
[null,null,null,null,null,null,null,null,null,null,null,null,null,null,"（",null,{"$f":"IF(D65=0,\" \",MID(\"日月火水木金土\",WEEKDAY(D65),1))","v":" "},null,null,"）",null,"集合場所・時間",null,null,null,null,null,null,null,null,null,null,null,null,null,null,null,null,null,null,null,null,null,null,null,null,null,null,null,null,null,null,null,null,null,null,null,null,null,null,null,null,null,null,null,null,null,null,null,null,null,null,null,null,null,null,null,null,null,null,null,null,null,null,null,null,"2017-10-06",null,null,null,null,null,null,null,null,null,null,"（",null,{"$f":"IF(CI65=0,\" \",MID(\"日月火水木金土\",WEEKDAY(CI65),1))","v":"金"},null,null,"）",null,"集合場所・時間",null,null,null,null,null,null,null,null,null,null,null,null,null,null,null,"JR○○駅中央改札口前あいうえおかきく",null,null,null,null,null,null,null,null,null,null,null,null,null,null,null,null,null,null,null,null,null,null,null,null,null,null,null,null,null,null,null,null,null,null,null,null,null,null,"20:30:00",null,null,null,null,null,null,null,null,null,"2017-10-06",null,null,null,null,null,null,null,null,null,null,"（",null,{"$f":"IF(FN65=0,\" \",MID(\"日月火水木金土\",WEEKDAY(FN65),1))","v":"金"},null,null,"）",null,"集合場所・時間",null,null,null,null,null,null,null,null,null,null,null,null,null,null,null,"会事務所",null,null,null,null,null,null,null,null,null,null,null,null,null,null,null,null,null,null,null,null,null,null,null,null,null,null,null,null,null,null,null,null,null,null,null,null,null,null,"20:30:00"]
[]
[]
[{"$f":"IF(A65=1,\"２\",IF(D68>0,\"～\",\" \"))","v":" "},null,null,null,null,null,null,null,null,null,null,null,null,null,{"$f":"IF(D68=0,\" \",\"（\")","v":" "},null,{"$f":"IF(D68=0,\" \",MID(\"日月火水木金土\",WEEKDAY(D68),1))","v":" "},null,null,{"$f":"IF(D68=0,\" \",\"）\")","v":" "},null,{"$f":"IF(E83,\"講習形態\",\"山行形態\")","v":"山行形態"},null,null,null,null,null,null,null,null,null,null,{"$f":"IF(N83,\"座学\",IF(Q82,\"岩登り\",\" \"))","v":" "},null,null,null,null,null,null,null,{"$f":"IF(AA82=1,\"車中泊\",IF(AA82=2,\"前夜泊\",IF(W83,\"実技\",\" \")))","v":" "},null,null,null,null,null,null,null,null,{"$f":"IF(AX82=1,\"   日帰り\",IF(AX82=2,\"   小屋泊\",IF(AX82=3,\"   テント泊\",IF(AX82=4,\" テント泊or小屋泊\",IF(AX82=5,\"  避難小屋泊\",IF(AX82=6,\"  テント泊or避難小屋泊\",IF(AX82=7,\"小屋泊or避難小屋泊\",\"\"\"\")))))))","v":"   テント泊"},null,null,null,null,null,null,null,null,null,null,null,null,null,null,null,null,null,null,null,{"$f":"IF(BP82,\"事前トレ\",\" \")","v":" "},null,null,null,null,null,null,null,"・",null,{"$f":"IF(BX82,\"MT\",\" \")","v":" "},null,null,null,{"$f":"IF(CF65=1,\"２\",IF(CI68>0,\"～\",\" \"))","v":"～"},null,null,"2017-10-07",null,null,null,null,null,null,null,null,null,null,{"$f":"IF(CI68=0,\" \",\"（\")","v":"（"},null,{"$f":"IF(CI68=0,\" \",MID(\"日月火水木金土\",WEEKDAY(CI68),1))","v":"土"},null,null,{"$f":"IF(CI68=0,\" \",\"）\")","v":"）"},null,{"$f":"IF(E83,\"講習形態\",\"山行形態\")","v":"山行形態"},null,null,null,null,null,null,null,null,null,null,{"$f":"AG68","v":" "},null,null,null,null,null,null,null,{"$f":"AO68","v":" "},null,null,null,null,null,null,null,null,{"$f":"AX68","v":"   テント泊"},null,null,null,null,null,null,null,null,null,null,null,null,null,null,null,null,null,null,null,{"$f":"BR68","v":" "},null,null,null,null,null,null,null,"・",null,{"$f":"CB68","v":" "},null,null,null,{"$f":"IF(FK65=1,\"２\",IF(FN68>0,\"～\",\" \"))","v":"～"},null,null,"2017-10-09",null,null,null,null,null,null,null,null,null,null,{"$f":"IF(FN68=0,\" \",\"（\")","v":"（"},null,{"$f":"IF(FN68=0,\" \",MID(\"日月火水木金土\",WEEKDAY(FN68),1))","v":"月"},null,null,{"$f":"IF(FN68=0,\" \",\"）\")","v":"）"},null,{"$f":"IF(FO83,\"講習形態\",\"山行形態\")","v":"山行形態"},null,null,null,null,null,null,null,null,null,null,{"$f":"IF(FX83,\"座学\",\" \")","v":" "},null,null,null,null,null,null,null,"車中泊",null,null,null,null,null,null,null,null,"テント泊or小屋泊",null,null,null,null,null,null,null,null,null,null,null,null,null,null,null,null,null,null,null,"事前トレ",null,null,null,null,null,null,null,"・",null,"MT"]
[]
[]
[null,null,null,null,null,null,null,null,null,null,null,null,null,null,null,null,null,null,null,null,null,null,null,null,null,null,null,null,null,null,null,null,null,null,null,null,null,null,null,null,null,null,null,null,null,null,null,null,null,null,null,null,null,null,null,null,null,null,null,null,null,null,"参加要件等・備考",null,null,null,null,null,null,null,null,null,null,null,null,null,null,null,null,null,null,null,null,null,"コース概略を記入してください。時刻の記入は不要。詳細詳細",null,null,null,null,null,null,null,null,null,null,null,null,null,null,null,null,null,null,null,null,null,null,null,null,null,null,null,null,null,null,null,null,null,null,null,null,null,null,null,null,null,null,null,null,null,null,null,null,null,null,null,null,null,null,null,null,null,null,null,null,"参加要件等・備考",null,null,null,null,null,null,null,null,null,null,null,null,null,null,null,null,null,null,null,null,null,"～白駒池（泊）　10/8（日）：麦草峠～茶臼山～縞枯山～",null,null,null,null,null,null,null,null,null,null,null,null,null,null,null,null,null,null,null,null,null,null,null,null,null,null,null,null,null,null,null,null,null,null,null,null,null,null,null,null,null,null,null,null,null,null,null,null,null,null,null,null,null,null,null,null,null,null,null,null,"参 加 要 件 等"]
[null,null,null,null,null,null,null,null,null,null,null,null,null,null,null,null,null,null,null,null,null,null,null,null,null,null,null,null,null,null,null,null,null,null,null,null,null,null,null,null,null,null,null,null,null,null,null,null,null,null,null,null,null,null,null,null,null,null,null,null,null,null,null,null,null,null,null,null,null,null,null,null,null,null,null,null,null,null,null,null,null,null,null,null,"は実際の山行計画書で書きおきください。",null,null,null,null,null,null,null,null,null,null,null,null,null,null,null,null,null,null,null,null,null,null,null,null,null,null,null,null,null,null,null,null,null,null,null,null,null,null,null,null,null,null,null,null,null,null,null,null,null,null,null,null,null,null,null,null,null,null,null,null,"初心岩教室修了者",null,null,null,null,null,null,null,null,null,null,null,null,null,null,null,null,null,null,null,null,null,"北横岳～双子池（泊） 10/9（月）：将軍平～蓼科山＝帰神　",null,null,null,null,null,null,null,null,null,null,null,null,null,null,null,null,null,null,null,null,null,null,null,null,null,null,null,null,null,null,null,null,null,null,null,null,null,null,null,null,null,null,null,null,null,null,null,null,null,null,null,null,null,null,null,null,null,null,null,null,"縦走完遂意志　要"]
[null,null,null,null,null,null,null,null,null,null,null,null,null,null,null,null,null,null,null,null,null,null,null,null,null,null,null,null,null,null,null,null,null,null,null,null,null,null,null,null,null,null,null,null,null,null,null,null,null,null,null,null,null,null,null,null,null,null,null,null,null,null,null,null,null,null,null,null,null,null,null,null,null,null,null,null,null,null,null,null,null,null,null,null,"例　１０／６　近鉄榛原駅→バス→下平野～吉野室生寺針線",null,null,null,null,null,null,null,null,null,null,null,null,null,null,null,null,null,null,null,null,null,null,null,null,null,null,null,null,null,null,null,null,null,null,null,null,null,null,null,null,null,null,null,null,null,null,null,null,null,null,null,null,null,null,null,null,null,null,null,null,null,null,null,null,null,null,null,null,null,null,null,null,null,null,null,null,null,null,null,null,null,null,null,null,null,null,null,null,null,null,null,null,null,null,null,null,null,null,null,null,null,null,null,null,null,null,null,null,null,null,null,null,null,null,null,null,null,null,null,null,null,null,null,null,null,null,null,null,null,null,null,null,null,null,null,null,null,null,null,null,null,null,null,"事前MT参加要"]
[null,null,null,null,null,null,null,null,null,null,null,null,null,null,null,null,null,null,null,null,null,null,null,null,null,null,null,null,null,null,null,null,null,null,null,null,null,null,null,null,null,null,null,null,null,null,null,null,null,null,null,null,null,null,null,null,null,null,null,null,null,null,null,null,null,null,null,null,null,null,null,null,null,null,null,null,null,null,null,null,null,null,null,null,"～瀧野～差杉峠～黒石山～船峯山～天狗山～高見山頂上",null,null,null,null,null,null,null,null,null,null,null,null,null,null,null,null,null,null,null,null,null,null,null,null,null,null,null,null,null,null,null,null,null,null,null,null,null,null,null,null,null,null,null,null,null,null,null,null,null,null,null,null,null,null,null,null,null,null,null,null,null,null,null,null,null,null,null,null,null,null,null,null,null,null,null,null,null,null,null,null,null,null,null,null,null,null,null,null,null,null,null,null,null,null,null,null,null,null,null,null,null,null,null,null,null,null,null,null,null,null,null,null,null,null,null,null,null,null,null,null,null,null,null,null,null,null,null,null,null,null,null,null,null,null,null,null,null,null,null,null,null,null,null,"車　提供お願い"]
[null,null,null,null,null,null,null,null,null,null,null,null,null,null,null,null,null,null,null,null,null,null,null,null,null,null,null,null,null,null,null,null,null,null,null,null,null,null,null,null,null,null,null,null,null,null,null,null,null,null,null,null,null,null,null,null,null,null,null,null,null,null,null,null,null,null,null,null,null,null,null,null,null,null,null,null,null,null,null,null,null,null,null,null,"～小峠"]
[]
[]
["歩行距離・時間（休含）",null,null,null,null,null,null,null,null,null,null,null,null,null,null,null,null,null,null,null,null,null,null,null,null,null,null,"募集人数",null,null,null,null,null,null,null,null,null,null,null,null,null,null,null,null,null,null,null,"人",null,null,"募集〆切日",null,null,null,null,null,null,null,null,null,null,null,null,null,"2017-11-30",null,null,null,null,null,null,null,null,null,null,"（",null,{"$f":"IF(BM78=0,\" \",MID(\"日月火水木金土\",WEEKDAY(BM78),1))","v":"木"},null,null,"）",null,null,"歩行距離・時間（休含）",null,null,null,null,null,null,null,null,null,null,null,null,null,null,null,null,null,null,null,null,null,null,null,null,null,null,"募集人数",null,null,null,null,null,null,null,null,null,16,null,null,null,null,null,null,null,null,null,"人",null,null,"募集〆切日",null,null,null,null,null,null,null,null,null,null,null,null,null,"2017-11-17",null,null,null,null,null,null,null,null,null,null,"（",null,{"$f":"IF(ER78=0,\" \",MID(\"日月火水木金土\",WEEKDAY(ER78),1))","v":"金"},null,null,"）",null,null,"歩行距離・時間（休含）",null,null,null,null,null,null,null,null,null,null,null,null,null,null,null,null,null,null,null,null,null,null,null,null,null,null,"募集人数",null,null,null,null,null,null,null,null,null,16,null,null,null,null,null,null,null,null,null,"人",null,null,"募集〆切日",null,null,null,null,null,null,null,null,null,null,null,null,null,"2017-11-17",null,null,null,null,null,null,null,null,null,null,"（",null,{"$f":"IF(HW78=0,\" \",MID(\"日月火水木金土\",WEEKDAY(HW78),1))","v":"金"},null,null,"）"]
[null,"約",null,null,null,null,null,null,null,null,null,null,"km",null,null,null,"約",null,null,null,null,null,null,null,null,null,null,"時間",null,null,null,null,null,"レベル",null,null,null,null,null,null,null,null,null,null,null,null,null,null,null,null,null,null,"交通手段・参加費等",null,null,null,null,null,null,null,null,null,null,null,null,null,null,null,null,null,null,null,null,null,null,null,null,null,null,null,null,null,null,null,"約",null,null,27,null,null,null,null,null,null,null,"km",null,null,null,"約",null,null,22,null,null,null,null,null,null,null,"時間",null,null,null,null,null,"レベル",null,null,null,null,null,null,null,"AB",null,null,null,null,null,null,null,null,null,null,"交通手段・参加費等",null,null,null,null,null,null,null,null,null,null,null,null,null,null,null,null,null,null,null,null,null,null,null,null,null,null,null,null,null,null,null,"約",null,null,27,null,null,null,null,null,null,null,"km",null,null,null,"約",null,null,22,null,null,null,null,null,null,null,"時間",null,null,null,null,null,"レベル",null,null,null,null,null,null,null,"AB",null,null,null,null,null,null,null,null,null,null,"交通手段・参加費等"]
[null,"申込先",null,null,null,null,null,null,null,null,null,null,null,null,null,null,null,null,null,null,null,null,null,null,null,null,null,"TEL",null,null,null,null,null,null,null,null,null,null,null,null,null,null,null,null,null,null,null,null,null,null,null,null,null,null,null,null,null,null,null,null,null,null,null,null,null,null,null,null,null,null,null,null,null,null,null,null,null,null,null,null,null,null,null,null,"申込先",null,null,null,null,null,null,null,null,"摩耶　三太郎",null,null,null,null,null,null,null,null,null,null,null,null,null,null,null,null,"TEL",null,null,null,null,null,"090-3702-1432",null,null,null,null,null,null,null,null,null,null,null,null,null,null,null,null,null,null,"例：JR　○○バス　約３,５００円",null,null,null,null,null,null,null,null,null,null,null,null,null,null,null,null,null,null,null,null,null,null,null,null,null,null,null,null,null,null,null,"申込先",null,null,null,null,null,null,null,null,"六向　峰次郎",null,null,null,null,null,null,null,null,null,null,null,null,null,null,null,null,"TEL",null,null,null,null,null,"090-8066-7777",null,null,null,null,null,null,null,null,null,null,null,null,null,null,null,null,null,null,"車　　小屋泊約33,000円、"]
[null,"メール",null,null,null,null,null,null,null,null,null,null,null,null,null,null,null,null,null,null,null,null,null,null,null,null,null,null,null,null,null,null,null,null,null,null,null,null,null,null,null,null,null,null,null,null,null,null,null,null,null,null,null,null,null,null,null,null,null,null,null,null,null,null,null,null,null,null,null,null,null,null,null,null,null,null,null,null,null,null,null,null,null,null,"メール",null,null,null,null,null,null,null,null,"mayasantarou3650@yahoo.co.jp",null,null,null,null,null,null,null,null,null,null,null,null,null,null,null,null,null,null,null,null,null,null,null,null,null,null,null,null,null,null,null,null,null,null,null,null,null,null,null,null,null,"車の提供お願い",null,null,null,null,null,null,null,null,null,null,null,null,null,null,null,null,null,null,null,null,null,null,null,null,null,null,null,null,null,null,null,"メール",null,null,null,null,null,null,null,null,"santarou_721@yahoo.co.jp",null,null,null,null,null,null,null,null,null,null,null,null,null,null,null,null,null,null,null,null,null,null,null,null,null,null,null,null,null,null,null,null,null,null,null,null,null,null,null,null,null,"テント泊約18,000円"]
[null,null,null,null,null,null,null,null,null,null,null,null,null,null,null,null,false,null,null,null,null,null,null,null,null,null,3,null,null,null,null,null,null,null,null,null,null,null,null,null,null,null,null,null,null,null,null,null,null,3,null,null,null,null,null,null,null,null,null,null,null,null,null,null,null,null,null,false,null,null,null,null,null,null,null,false]
[null,null,null,null,false,null,null,null,null,null,null,null,null,false,null,null,null,null,null,null,null,null,false,null,null,null,null,null,null,null,null,null,null,null,null,null,null,null,null,null,null,null,null,null,null,null,null,null,null,null,null,null,null,null,null,null,null,null,null,null,null,null,null,null,null,null,null,true]
[]
[]
[]
[]
[]
[]
[]
[]
[]
[]
[]
[]
[]
[]
[]
[]
[]
[]
[]
[]
[]
[]
[]
[]
[]
[]
[]
[]
[]
[]
[]
[]
[]
[]
[]
[]
[]
[]
[]
[]
[]
[]
[]
[]
[]
[]
[]
[]
[]
[]
[]
[]
[]
[]
[]
[]
[]
[]
[]
[]
[]
[]
[]
[]
[]
[]
[]
[]
[]
[]
[]
[]
[]
[]
[]
[]
[]
[]
[]
[]
[]
[]
[]
[]
[]
[]
[]
[]
[]
[]
[]
[]
[]
[]
[]
[]
[]
[]
[]
[]
[]
[]
[]
[]
[]
[]
[]
[]
[]
[]
[]
[]
[null,null,"『記入方法』"]
[]
[null,"＊",null,null,"各欄　文字入力は、各欄行以内に納めてください。"]

{"sheet":"Sheet3","index":1,"n_rows":15,"n_cols":6,"rows_kept":15,"cut":false,"hidden":false,"merged":[]}
[]
[]
[]
[null,null,"2017-09-16","2017-09-16"]
[null,null,"2018-09-16","2018-09-16"]
[null,null,"2019-09-16","2019-09-16"]
[null,null,"2020-09-16","2020-09-16"]
[null,null,"2021-09-16","2021-09-16"]
[]
[]
[]
[]
[]
[null,null,null,null,{"$f":"'個人オープン例会企画書シート（原本）'!AL65:BX65","v":{"$error":"#VALUE!"}}]
[null,null,null,null,null,{"$f":"'個人オープン例会企画書シート（原本）'!AX68:BQ68","v":{"$error":"#VALUE!"}}]

{"sheet":"Sheet4","index":2,"n_rows":196,"n_cols":81,"rows_kept":196,"cut":false,"hidden":false,"merged":[[77,33,77,51],[77,52,77,81],[82,4,82,12],[79,26,79,34],[79,49,79,57],[79,67,79,74],[79,75,79,82],[80,4,80,12],[80,13,80,21],[80,22,80,30],[78,1,78,9],[78,10,78,51],[78,52,78,81],[75,80,75,81],[76,1,76,3],[76,4,76,11],[76,12,76,15],[76,16,76,18],[76,19,76,26],[76,27,76,32],[76,33,76,40],[76,41,76,51],[76,52,76,81],[77,1,77,9],[77,10,77,26],[77,27,77,32],[72,1,72,59],[72,62,72,81],[75,0,75,26],[75,27,75,36],[75,37,75,46],[75,47,75,49],[75,50,75,63],[75,64,75,74],[75,75,75,76],[75,77,75,79],[69,1,69,59],[69,62,69,81],[70,1,70,59],[70,62,70,81],[71,1,71,59],[71,62,71,81],[65,49,65,68],[65,69,65,76],[65,77,65,78],[65,79,65,82],[68,1,68,59],[68,62,68,82],[62,37,62,75],[62,76,62,82],[65,0,65,2],[65,3,65,13],[65,14,65,15],[65,16,65,18],[65,19,65,20],[65,21,65,31],[65,32,65,38],[65,40,65,47],[62,0,62,2],[62,3,62,13],[62,14,62,15],[62,16,62,18],[62,19,62,20],[62,21,62,36],[58,1,58,67],[58,69,59,82],[59,1,59,67],[0,3,0,80],[1,3,1,80],[2,3,2,80],[3,19,3,27],[55,1,55,81]]}
[null,null,null,"個 人 オ ー プ ン 例 会 企 画 書 フ ォ ー ム"]
[null,null,null,"入　力　シ　ー　ト"]
[null,null,null,"個 人 オ ー プ ン 例 会 企 画 書 フ ォ ー ム"]
[null,"＊",null,null,null,"下記のシート",null,null,null,null,null,null,null,null,null,null,null,null,null,null,null,null,null,null,null,null,null,null,null,"欄に記入ください。"]
[]
[]
[null,"＊",null,null,null,"常に、この原本から作成してください。作成して保存したシートから再度、上書き利用"]
[null,null,null,null,null,"すると、記述内容の変更消し忘れ等間違いのもととなります。"]
[]
[]
[null,"＊",null,null,null,"１ページ、３グリッド（３例会）を掲載します。記入事項の多いものも、簡潔にまとめ、フオ"]
[]
[]
[null,null,null,null,null,"ーム範囲内に収まるよう記入ください。"]
[]
[]
[null,"＊",null,null,null,"謄写版モノクロ印刷です。青色文字色などは薄れて不鮮明な印刷となり,メールア"]
[null,null,null,null,null,"ド記入時の青色表示など、すべて黒色変換で記入ください。"]
[null,"＊",null,null,null,"文字印刷幅などのため、１（結合）セル内での文字記入可能範囲は、シート表示より"]
[null,null,null,null,null,"狭まり、概ね右欄『記入方法』記載の　位置迄です。"]
[null,"＊",null,null,null,"謄写版印刷状態により、文字フォントは、１０P以下、小文字でのゴシック体などは文字"]
[]
[]
[null,null,null,null,null,"印刷潰れ、滲みなど発生、使用避けてください。"]
[null,"＊",null,null,null,"記入完了後、印刷プレビュー画面(メニューバー　ファイル　クリック　印刷　クリック）で、"]
[null,null,null,null,null,"必ず表示確認してください。印刷はPDFファイル変換で行うため若干縮小されるため、"]
[null,null,null,null,null,"印刷レビュー表示より１文字ぐらい減らして、文字切れなど修正してください。"]
[null,"＊",null,null,null,"1例会案内（企画）で1ファイルです。複数例会企画は、それぞれ作成してください。"]
[null,"＊",null,null,null,"ファイル名を、「山行日付 個人例会〇〇月号　山行名　（氏名）」　と付けて保存、"]
[]
[null,null,null,null,null,"会　Eメールアドレス　mayanakama@yahoo.co.jp　宛にファイル添付、送付ください。"]
[]
[]
[]
[]
[]
[]
[]
[]
[]
[]
[]
[]
[]
[]
[]
[]
[null,null,"山行（講習）形態　該当事項を、クリック　チェックを記入、選択してください。"]
[]
[]
[]
[]
[]
[]
[]
[null,{"$f":"'個人オープン例会企画書シート（原本）'!$B$58:$CD$58","v":0}]
[]
[]
[null,"原生林・苔尽くしで活かされ、池沼が神秘的な雰囲気を漂わせ",null,null,null,null,null,null,null,null,null,null,null,null,null,null,null,null,null,null,null,null,null,null,null,null,null,null,null,null,null,null,null,null,null,null,null,null,null,null,null,null,null,null,null,null,null,null,null,null,null,null,null,null,null,null,null,null,null,null,null,null,null,null,null,null,null,null,null,"個　　人　　　　　オープン"]
[null,"る「北八ヶ岳」！、ゴールは百名山・蓼科山！"]
[]
[]
[null,null,null,"2017-10-06",null,null,null,null,null,null,null,null,null,null,"（",null,{"$f":"IF(D63=0,\" \",MID(\"日月火水木金土\",WEEKDAY(D63),1))","v":"金"},null,null,"）",null,"集合場所・時間",null,null,null,null,null,null,null,null,null,null,null,null,null,null,null,"会事務所",null,null,null,null,null,null,null,null,null,null,null,null,null,null,null,null,null,null,null,null,null,null,null,null,null,null,null,null,null,null,null,null,null,null,null,null,null,null,"20:30:00"]
[]
[]
[{"$f":"IF(A63=1,\"２\",IF(D66>0,\"～\",\" \"))","v":"～"},null,null,"2017-10-09",null,null,null,null,null,null,null,null,null,null,{"$f":"IF(D66=0,\" \",\"（\")","v":"（"},null,{"$f":"IF(D66=0,\" \",MID(\"日月火水木金土\",WEEKDAY(D66),1))","v":"月"},null,null,{"$f":"IF(D66=0,\" \",\"）\")","v":"）"},null,{"$f":"IF(E81,\"講習形態\",\"山行形態\")","v":"山行形態"},null,null,null,null,null,null,null,null,null,null,{"$f":"IF(N81,\"座学\",\" \")","v":" "},null,null,null,null,null,null,null,{"$f":"IF(AA80=1,\"車中泊\",IF(AA80=2,\"前夜泊\",IF(W81,\"実技\",\" \")))","v":" "},null,null,null,null,null,null,null,null,{"$f":"'個人オープン例会企画書シート（原本）'!$AX$68:$BQ$68","v":"   テント泊"},null,null,null,null,null,null,null,null,null,null,null,null,null,null,null,null,null,null,null,{"$f":"IF(BP80,\"事前トレ\",\" \")","v":"事前トレ"},null,null,null,null,null,null,null,"・",null,{"$f":"IF(BX80,\"MT\",\" \")","v":"MT"}]
[]
[]
[null,"10/6（金）：神戸＝名神＝中央道＝諏訪・SA仮眠",null,null,null,null,null,null,null,null,null,null,null,null,null,null,null,null,null,null,null,null,null,null,null,null,null,null,null,null,null,null,null,null,null,null,null,null,null,null,null,null,null,null,null,null,null,null,null,null,null,null,null,null,null,null,null,null,null,null,null,null,"参加要件等・備考"]
[null,"10/7（土）：白駒池～にゅう～東天狗岳～中山峠～高見石",null,null,null,null,null,null,null,null,null,null,null,null,null,null,null,null,null,null,null,null,null,null,null,null,null,null,null,null,null,null,null,null,null,null,null,null,null,null,null,null,null,null,null,null,null,null,null,null,null,null,null,null,null,null,null,null,null,null,null,null,"交通費等："]
[null,"～白駒池（泊）　10/8（日）：麦草峠～茶臼山～縞枯山～",null,null,null,null,null,null,null,null,null,null,null,null,null,null,null,null,null,null,null,null,null,null,null,null,null,null,null,null,null,null,null,null,null,null,null,null,null,null,null,null,null,null,null,null,null,null,null,null,null,null,null,null,null,null,null,null,null,null,null,null,"小屋泊約33,000円、"]
[null,"北横岳～双子池（泊） 10/9（月）：将軍平～蓼科山＝帰神　",null,null,null,null,null,null,null,null,null,null,null,null,null,null,null,null,null,null,null,null,null,null,null,null,null,null,null,null,null,null,null,null,null,null,null,null,null,null,null,null,null,null,null,null,null,null,null,null,null,null,null,null,null,null,null,null,null,null,null,null,"テント泊約18,000円"]
[]
[]
[]
["歩行距離・時間（休含）",null,null,null,null,null,null,null,null,null,null,null,null,null,null,null,null,null,null,null,null,null,null,null,null,null,null,"募集人数",null,null,null,null,null,null,null,null,null,16,null,null,null,null,null,null,null,null,null,"人",null,null,"募集〆切日",null,null,null,null,null,null,null,null,null,null,null,null,null,"2017-11-17",null,null,null,null,null,null,null,null,null,null,"（",null,{"$f":"IF(BM76=0,\" \",MID(\"日月火水木金土\",WEEKDAY(BM76),1))","v":"金"},null,null,"）"]
[null,"約",null,null,27,null,null,null,null,null,null,null,"km",null,null,null,"約",null,null,22,null,null,null,null,null,null,null,"時間",null,null,null,null,null,"レベル",null,null,null,null,null,null,null,"AB",null,null,null,null,null,null,null,null,null,null,"交通手段・参加費等"]
[null,"申込先",null,null,null,null,null,null,null,null,"狩集　浩",null,null,null,null,null,null,null,null,null,null,null,null,null,null,null,null,"TEL",null,null,null,null,null,"090-3702-1432",null,null,null,null,null,null,null,null,null,null,null,null,null,null,null,null,null,null,"自家用車利用"]
[null,"メール",null,null,null,null,null,null,null,null,"hiroann19610709@yahoo.co.jp",null,null,null,null,null,null,null,null,null,null,null,null,null,null,null,null,null,null,null,null,null,null,null,null,null,null,null,null,null,null,null,null,null,null,null,null,null,null,null,null,null,"車の提供お願いします！"]
[null,null,null,null,null,null,null,null,null,null,null,null,null,null,null,null,null,null,null,null,null,null,null,null,null,null,3,null,null,null,null,null,null,null,null,null,null,null,null,null,null,null,null,null,null,null,null,null,null,2,null,null,null,null,null,null,null,null,null,null,null,null,null,null,null,null,null,true,null,null,null,null,null,null,null,true]
[null,null,null,null,false,null,null,null,null,null,null,null,null,false,null,null,null,null,null,null,null,null,false,null,null,null,null,null,null,null,null,null,null,null,null,null,null,null,null,null,null,null,null,null,null,null,null,null,null,null,null,null,null,null,null,null,null,null,null,null,null,null,null,null,null,null,null,true]
[]
[]
[]
[]
[]
[]
[]
[]
[]
[]
[]
[]
[]
[]
[]
[]
[]
[]
[]
[]
[]
[]
[]
[]
[]
[]
[]
[]
[]
[]
[]
[]
[]
[]
[]
[]
[]
[]
[]
[]
[]
[]
[]
[]
[]
[]
[]
[]
[]
[]
[]
[]
[]
[]
[]
[]
[]
[]
[]
[]
[]
[]
[]
[]
[]
[]
[]
[]
[]
[]
[]
[]
[]
[]
[]
[]
[]
[]
[]
[]
[]
[]
[]
[]
[]
[]
[]
[]
[]
[]
[]
[]
[]
[]
[]
[]
[]
[]
[]
[]
[]
[]
[]
[]
[]
[]
[]
[]
[]
[]
[]
[]
[null,null,"『記入方法』"]
[]
[null,"＊",null,null,"各欄　文字入力は、各欄行以内に納めてください。"]